fUSD/lending_fUSD_20250905
["ID","MTS","AMOUNT","RATE_DAILY","PERIOD"]
[383625363,1757045461055,-400.0,0.0002562,2]
[383625364,1757045461068,-400.0,0.0002562,2]
[383625365,1757045461082,-400.0,0.0002562,2]
[383625366,1757045461096,-400.0,0.0002562,2]
[383625367,1757045461110,-400.0,0.0002562,2]
[383625368,1757045461124,-400.0,0.0002562,2]
[383625369,1757045461138,-400.0,0.0002562,2]
[383625370,1757045461150,-400.0,0.0002562,2]
[383625371,1757045461163,-400.0,0.0002562,2]
[383625372,1757045461176,-400.0,0.0002562,2]
[383625373,1757045461189,-400.0,0.0002562,2]
[383625374,1757045461201,-400.0,0.0002562,2]
[383625375,1757045461213,-400.0,0.0002562,2]
[383625376,1757045461226,-400.0,0.0002562,2]
[383625377,1757045461239,-400.0,0.0002562,2]
[383625378,1757045461251,-413.85620228,0.0002562,2]
[383625379,1757045461263,-400.0,0.0002562,2]
[383625380,1757045461276,-400.0,0.0002562,2]
[383625381,1757045461289,-400.0,0.0002562,2]
[383625382,1757045461302,-400.0,0.0002562,2]
[383625383,1757045461314,-400.0,0.0002562,2]
[383625384,1757045461327,-400.0,0.0002562,2]
[383625385,1757045461339,-457.18139113,0.0002562,2]
[383625386,1757045461351,-400.0,0.0002562,2]
[383625387,1757045461364,-316.39546976,0.0002562,2]
[383625388,1757045461377,-400.0,0.0002562,2]
[383625389,1757045461390,-400.0,0.0002562,2]
[383625390,1757045461402,-400.0,0.0002562,2]
[383625391,1757045461415,-400.0,0.0002562,2]
[383625392,1757045461427,-400.0,0.0002562,2]
[383625393,1757045461440,-400.0,0.0002562,2]
[383625394,1757045461454,-400.0,0.0002562,2]
[383625395,1757045461468,-400.0,0.0002562,2]
[383625396,1757045461482,-400.0,0.0002562,2]
[383625397,1757045461497,-400.0,0.0002562,2]
[383625398,1757045461514,-400.0,0.0002562,2]
[383625399,1757045461529,-400.0,0.0002562,2]
[383625400,1757045461543,-400.0,0.0002562,2]
[383625401,1757045461565,-338.71964857,0.0002562,2]
[383625402,1757045461580,-400.0,0.0002562,2]
[383625403,1757045461592,-400.0,0.0002562,2]
[383625404,1757045461605,-434.59,0.0002562,2]
[383625405,1757045461618,-400.0,0.0002562,2]
[383625406,1757045461631,-400.0,0.0002562,2]
[383625407,1757045461644,-400.0,0.0002562,2]
[383625408,1757045461658,-298.7775345,0.0002562,2]
[383625409,1757045461671,-400.0,0.0002562,2]
[383625410,1757045461684,-400.0,0.0002562,2]
[383625411,1757045461697,-400.0,0.0002562,2]
[383625412,1757045461711,-400.0,0.0002562,2]
[383625413,1757045461725,-400.0,0.0002562,2]
[383625414,1757045461738,-400.0,0.0002562,2]
[383625415,1757045461752,-500.0,0.00025624,2]
[383625416,1757045461764,-500.0,0.00025624,2]
[383625417,1757045461777,-152.70877039,0.00025624,2]
[383625418,1757045461791,-500.0,0.00025624,2]
[383625419,1757045461804,-500.0,0.00025624,2]
[383625420,1757045461816,-150.0,0.00025624,2]
[383625421,1757045461829,-405237.4753978,0.00025625,2]
[383625422,1757045461842,-14206.2542379,0.00025625,2]
[383625423,1757045461855,-6231.625176,0.00025625,2]
[383625424,1757045461867,-1425.0,0.0002563,2]
[383625425,1757045461880,-1425.0,0.00025632,2]
[383625426,1757045461893,-1425.0,0.00025655,2]
[383625427,1757045461907,-150.0,0.00025657,2]
[383625428,1757045461921,-1425.0,0.00025658,2]
[383625429,1757045461934,-168.0,0.00025662,7]
[383625430,1757045461947,-1425.0,0.00025666,2]
[383625431,1757045461961,-1425.0,0.0002567,2]
[383625432,1757045461976,-502.80008317,0.00025673,2]
[383625433,1757045461991,-502.26869561,0.00025673,2]
[383625434,1757045462001,-500.0,0.00025673,2]
[383625435,1757045462012,-544.62003123,0.00025673,2]
[383625436,1757045462022,-464.63534969,0.00025673,2]
[383625437,1757045462034,-503.29584081,0.00025673,2]
[383625438,1757045462043,-151.03087859,0.00025673,2]
[383625439,1757045462051,-150.0,0.00025675,2]
[383625440,1757045462060,-500.0,0.00025698,2]
[383625441,1757045462069,-1000.0,0.00025699,2]
[383625442,1757045462078,-150.0,0.00025699,2]
[383625443,1757045462087,-180.15,0.00025712,2]
[383625444,1757045462096,-168.0,0.00025718,2]
[383625445,1757045462105,-1425.0,0.00025718,2]
[383625446,1757045462113,-400.0,0.00025719,2]
[383625447,1757045462122,-400.0,0.00025719,2]
[383625448,1757045462131,-400.0,0.00025719,2]
[383625449,1757045462140,-400.0,0.00025719,2]
[383625450,1757045462150,-400.0,0.00025719,2]
[383625451,1757045462160,-416.164597,0.00025719,2]
[383625452,1757045462170,-400.0,0.00025719,2]
[383625453,1757045462180,-248.51944258,0.00025719,2]
[383625454,1757045462436,-400.0,0.00025719,2]
[383625455,1757045462459,-400.0,0.00025719,2]
[383625456,1757045462480,-333.27423344,0.00025719,2]
[383625457,1757045462490,-400.0,0.00025719,2]
[383625458,1757045462500,-400.0,0.00025719,2]
[383625459,1757045462510,-400.0,0.00025719,2]
[383625460,1757045462519,-400.0,0.00025719,2]
[383625461,1757045462529,-439.330001,0.00025719,2]
[383625462,1757045462538,-513.70506025,0.00025719,2]
[383625463,1757045462550,-400.0,0.00025719,2]
[383625464,1757045462559,-191.75865916,0.00025719,2]
[383625465,1757045462569,-511.19852644,0.00025719,2]
[383625466,1757045462578,-400.0,0.00025719,2]
[383625467,1757045462588,-400.0,0.00025719,2]
[383625468,1757045462597,-400.0,0.00025719,2]
[383625469,1757045462607,-400.0,0.00025719,2]
[383625470,1757045462617,-400.0,0.00025719,2]
[383625471,1757045462626,-490.72,0.00025719,2]
[383625472,1757045462635,-400.0,0.00025719,2]
[383625473,1757045462645,-400.0,0.00025719,2]
[383625474,1757045462654,-400.0,0.00025719,2]
[383625475,1757045462664,-400.0,0.00025719,2]
[383625476,1757045462674,-400.0,0.00025719,2]
[383625477,1757045462684,-400.0,0.00025719,2]
[383625478,1757045462694,-400.0,0.00025719,2]
[383625479,1757045462704,-400.0,0.00025719,2]
[383625480,1757045462714,-400.0,0.00025719,2]
[383625481,1757045462725,-400.0,0.00025719,2]
[383625482,1757045462735,-400.0,0.00025719,2]
[383625483,1757045462745,-420.82732986,0.00025719,2]
[383625484,1757045462755,-400.0,0.00025719,2]
[383625485,1757045462764,-150.0,0.00025719,2]
[383625486,1757045462774,-400.0,0.00025719,2]
[383625487,1757045462784,-400.0,0.00025719,2]
[383625488,1757045462793,-406.68030221,0.00025719,2]
[383625489,1757045462803,-409.00424569,0.00025719,2]
[383625490,1757045462813,-451.95471479,0.00025719,2]
[383625491,1757045462822,-400.0,0.00025719,2]
[383625492,1757045462832,-1135.87,0.00025719,2]
[383625493,1757045462841,-400.0,0.00025719,2]
[383625494,1757045462851,-279.56682691,0.00025719,2]
[383625495,1757045462861,-400.0,0.00025719,2]
[383625496,1757045462871,-553.22,0.00025719,2]
[383625497,1757045462881,-400.0,0.00025719,2]
[383625498,1757045462891,-400.0,0.00025719,2]
[383625499,1757045462901,-400.0,0.00025719,2]
[383625500,1757045462911,-400.0,0.00025719,2]
[383625501,1757045462921,-400.0,0.00025719,2]
[383625502,1757045462931,-298.88367498,0.00025719,2]
[383625503,1757045462940,-400.0,0.00025719,2]
[383625504,1757045462949,-400.0,0.00025719,2]
[383625505,1757045462959,-400.0,0.00025719,2]
[383625506,1757045462968,-400.0,0.00025719,2]
[383625507,1757045462978,-400.0,0.00025719,2]
[383625508,1757045462987,-659.02,0.00025719,2]
[383625509,1757045462997,-693.59,0.00025719,2]
[383625510,1757045463006,-400.0,0.00025719,2]
[383625511,1757045463016,-222.23728226,0.00025719,2]
[383625512,1757045463026,-388.90631214,0.00025719,2]
[383625513,1757045463036,-1013.01,0.00025719,2]
[383625514,1757045463046,-400.0,0.00025719,2]
[383625515,1757045463056,-400.0,0.00025719,2]
[383625516,1757045463066,-400.0,0.00025719,2]
[383625517,1757045463077,-400.0,0.00025719,2]
[383625518,1757045463086,-256.85428882,0.00025719,2]
[383625519,1757045463096,-221.92792243,0.00025719,2]
[383625520,1757045463106,-400.0,0.00025719,2]
[383625521,1757045463116,-400.0,0.00025719,2]
[383625522,1757045463125,-400.0,0.0002572,2]
[383625523,1757045463136,-400.0,0.0002573,2]
[383625524,1757045463146,-400.0,0.0002573,2]
[383625525,1757045463156,-400.0,0.0002573,2]
[383625526,1757045463165,-231.45414307,0.0002573,2]
[383625527,1757045463175,-400.0,0.0002573,2]
[383625528,1757045463185,-545.02649487,0.0002573,2]
[383625529,1757045463194,-1425.0,0.00025744,2]
[383625530,1757045463204,-813.25811076,0.00025747,2]
[383625531,1757045463214,-1369.4363082,0.0002575,2]
[383625532,1757045463224,-500.0,0.00025752,2]
[383625533,1757045463234,-400.0,0.00025752,2]
[383625534,1757045463243,-400.0,0.00025752,2]
[383625535,1757045463253,-173.43608525,0.00025752,2]
[383625536,1757045463263,-2614.78,0.00025752,2]
[383625537,1757045463273,-400.0,0.00025752,2]
[383625538,1757045463282,-400.0,0.00025752,2]
[383625539,1757045463292,-400.0,0.00025752,2]
[383625540,1757045463301,-500.0,0.00025752,2]
[383625541,1757045463311,-2000.0,0.00025753,2]
[383625542,1757045463322,-1338.728,0.00025753,2]
[383625543,1757045463331,-293.67429046,0.00025753,2]
[383625544,1757045463342,-400.0,0.00025753,2]
[383625545,1757045463352,-400.0,0.00025753,2]
[383625546,1757045463361,-400.0,0.00025753,2]
[383625547,1757045463371,-400.0,0.00025753,2]
[383625548,1757045463380,-220.08011119,0.00025753,2]
[383625549,1757045463389,-244.89858542,0.00025753,2]
[383625550,1757045463400,-400.0,0.00025753,2]
[383625551,1757045463410,-400.0,0.00025753,2]
[383625552,1757045463420,-313.63904547,0.00025753,2]
[383625553,1757045463430,-484.95561263,0.00025753,2]
[383625554,1757045463439,-400.0,0.00025753,2]
[383625555,1757045463449,-424.73567129,0.00025753,2]
[383625556,1757045463459,-400.0,0.00025753,2]
[383625557,1757045463469,-400.0,0.00025753,2]
[383625558,1757045463478,-400.0,0.00025753,2]
[383625559,1757045463488,-400.0,0.00025753,2]
[383625560,1757045463498,-308.54670387,0.00025753,2]
[383625561,1757045463507,-400.0,0.00025753,2]
[383625562,1757045463517,-400.0,0.00025753,2]
[383625563,1757045463527,-418.92683204,0.00025753,2]
[383625564,1757045463537,-400.0,0.00025753,2]
[383625565,1757045463547,-249.18111213,0.00025753,2]
[383625566,1757045463561,-400.0,0.00025753,2]
[383625567,1757045463571,-400.0,0.00025753,2]
[383625568,1757045463582,-400.0,0.00025753,2]
[383625569,1757045463593,-417.61974438,0.00025753,2]
[383625570,1757045463603,-400.0,0.00025753,2]
[383625571,1757045463613,-400.0,0.00025753,2]
[383625572,1757045463624,-400.0,0.00025753,2]
[383625573,1757045463634,-400.0,0.00025753,2]
[383625574,1757045463645,-400.0,0.00025753,2]
[383625575,1757045463655,-224.28,0.00025753,2]
[383625576,1757045463665,-203.44036958,0.00025753,2]
[383625577,1757045463675,-400.0,0.00025753,2]
[383625578,1757045463684,-316.43024548,0.00025753,2]
[383625579,1757045463695,-400.0,0.00025753,2]
[383625580,1757045463704,-400.0,0.00025753,2]
[383625581,1757045463714,-279.49278786,0.00025753,2]
[383625582,1757045463724,-400.0,0.00025753,2]
[383625583,1757045463734,-400.0,0.00025753,2]
[383625584,1757045463744,-400.0,0.00025753,2]
[383625585,1757045463754,-412.24023652,0.00025753,2]
[383625586,1757045463763,-400.0,0.00025753,2]
[383625587,1757045463773,-379.75290611,0.00025753,2]
[383625588,1757045463783,-400.0,0.00025753,2]
[383625589,1757045463794,-194.40956386,0.00025753,2]
[383625590,1757045463804,-400.0,0.00025753,2]
[383625591,1757045463814,-301.98275267,0.00025753,2]
[383625592,1757045463825,-400.0,0.00025753,2]
[383625593,1757045463836,-425.71148543,0.00025753,2]
[383625594,1757045463846,-511.45185167,0.00025753,2]
[383625595,1757045463856,-400.0,0.00025753,2]
[383625596,1757045463867,-275.36710153,0.00025753,2]
[383625597,1757045463877,-400.0,0.00025753,2]
[383625598,1757045463888,-514.21439681,0.00025753,2]
[383625599,1757045463898,-400.0,0.00025753,2]
[383625600,1757045463908,-400.0,0.00025753,2]
[383625601,1757045463918,-481.62078126,0.00025753,2]
[383625602,1757045463929,-400.0,0.00025753,2]
[383625603,1757045463939,-400.0,0.00025753,2]
[383625604,1757045463948,-400.0,0.00025753,2]
[383625605,1757045463958,-400.0,0.00025753,2]
[383625606,1757045463968,-400.0,0.00025753,2]
[383625607,1757045463977,-400.0,0.00025753,2]
[383625608,1757045463987,-400.0,0.00025753,2]
[383625609,1757045463997,-400.0,0.00025753,2]
[383625610,1757045464007,-577.81,0.00025753,2]
[383625611,1757045464016,-400.0,0.00025753,2]
[383625612,1757045464026,-400.0,0.00025753,2]
[383625613,1757045464036,-1340.23,0.00025753,2]
[383625614,1757045464046,-208.84338288,0.00025753,2]
[383625615,1757045464055,-238.12406613,0.00025753,2]
[383625616,1757045464066,-400.0,0.00025753,2]
[383625617,1757045464075,-828.84,0.00025753,2]
[383625618,1757045464085,-400.0,0.00025753,2]
[383625619,1757045464095,-244.60576114,0.00025753,2]
[383625620,1757045464105,-1218.03,0.00025753,2]
[383625621,1757045464115,-701.33,0.00025753,2]
[383625622,1757045464125,-290.95407,0.00025753,2]
[383625623,1757045464135,-480.7796958,0.00025753,2]
[383625624,1757045464145,-400.0,0.00025753,2]
[383625625,1757045464156,-400.0,0.00025753,2]
[383625626,1757045464166,-323.92818328,0.00025753,2]
[383625627,1757045464176,-400.0,0.00025753,2]
[383625628,1757045464186,-400.0,0.00025753,2]
[383625629,1757045464195,-400.0,0.00025753,2]
[383625630,1757045464205,-400.0,0.00025753,2]
[383625631,1757045464215,-400.0,0.00025753,2]
[383625632,1757045464225,-400.0,0.00025753,2]
[383625633,1757045464235,-400.0,0.00025753,2]
[383625634,1757045464246,-400.0,0.00025753,2]
[383625635,1757045464256,-400.0,0.00025753,2]
[383625636,1757045464266,-400.0,0.00025753,2]
[383625637,1757045464276,-400.0,0.00025753,2]
[383625638,1757045464286,-400.0,0.00025753,2]
[383625639,1757045464296,-424.56,0.00025753,2]
[383625640,1757045464305,-337.37421412,0.00025753,2]
[383625641,1757045464315,-205.73411848,0.00025753,2]
[383625642,1757045464325,-400.0,0.00025753,2]
[383625643,1757045464335,-400.0,0.00025753,2]
[383625644,1757045464345,-214.87703552,0.00025753,2]
[383625645,1757045464355,-400.0,0.00025753,2]
[383625646,1757045464365,-400.0,0.00025753,2]
[383625647,1757045464375,-400.0,0.00025753,2]
[383625648,1757045464384,-400.0,0.00025753,2]
[383625649,1757045464394,-575.41,0.00025753,2]
[383625650,1757045464405,-400.0,0.00025753,2]
[383625651,1757045464415,-400.0,0.00025753,2]
[383625652,1757045464425,-3097.05,0.00025753,2]
[383625653,1757045464435,-370.78062203,0.00025753,2]
[383625654,1757045464444,-253.56776239,0.00025753,2]
[383625655,1757045464454,-400.0,0.00025753,2]
[383625656,1757045464463,-254.34911759,0.00025753,2]
[383625657,1757045464473,-400.0,0.00025753,2]
[383625658,1757045464483,-400.0,0.00025753,2]
[383625659,1757045464493,-400.0,0.00025753,2]
[383625660,1757045464503,-244.23496294,0.00025768,2]
[383625661,1757045464512,-275.0,0.0002578,2]
[383625662,1757045464522,-500.0,0.00025818,14]
[383625663,1757045464531,-191.31230879,0.00025818,14]
[383625664,1757045464541,-258.19525003,0.00025818,14]
[383625665,1757045464554,-500.0,0.00025818,14]
[383625666,1757045464564,-500.0,0.00025821,2]
[383625667,1757045464574,-500.0,0.00025821,2]
[383625668,1757045464584,-503.0,0.00025821,2]
[383625669,1757045464594,-372.34,0.00025855,2]
[383625670,1757045464604,-152.0,0.00025861,6]
[383625671,1757045464614,-502.22123981,0.00025868,2]
[383625672,1757045464624,-1500.0,0.00025868,2]
[383625673,1757045464635,-501.34920423,0.00025868,2]
[383625674,1757045464645,-1500.0,0.00025868,2]
[383625675,1757045464656,-349.0,0.0002589,7]
[383625676,1757045464666,-154.0,0.0002589,7]
[383625677,1757045464676,-400.0,0.00025894,2]
[383625678,1757045464686,-400.0,0.00025894,2]
[383625679,1757045464696,-400.0,0.00025894,2]
[383625680,1757045464706,-400.0,0.00025894,2]
[383625681,1757045464716,-400.0,0.00025894,2]
[383625682,1757045464725,-400.0,0.00025894,2]
[383625683,1757045464735,-400.0,0.00025894,2]
[383625684,1757045464745,-400.0,0.00025894,2]
[383625685,1757045464756,-400.0,0.00025894,2]
[383625686,1757045464766,-400.0,0.00025894,2]
[383625687,1757045464777,-400.0,0.00025894,2]
[383625688,1757045464787,-271.40676312,0.00025894,2]
[383625689,1757045464797,-400.0,0.00025894,2]
[383625690,1757045464808,-288.90803833,0.00025894,2]
[383625691,1757045464819,-400.0,0.00025894,2]
[383625692,1757045464829,-400.0,0.00025894,2]
[383625693,1757045464839,-400.0,0.00025894,2]
[383625694,1757045464849,-400.0,0.00025894,2]
[383625695,1757045464859,-400.0,0.00025894,2]
[383625696,1757045464869,-340.10147174,0.00025894,2]
[383625697,1757045464879,-212.40665926,0.00025894,2]
[383625698,1757045464888,-400.0,0.00025894,2]
[383625699,1757045464898,-400.0,0.00025894,2]
[383625700,1757045464908,-400.0,0.00025894,2]
[383625701,1757045464918,-234.43553766,0.00025894,2]
[383625702,1757045464928,-296.05905623,0.00025894,2]
[383625703,1757045464939,-400.0,0.00025894,2]
[383625704,1757045464950,-400.0,0.00025894,2]
[383625705,1757045464960,-400.0,0.00025894,2]
[383625706,1757045464970,-400.0,0.00025894,2]
[383625707,1757045464980,-380.78681078,0.00025894,2]
[383625708,1757045464990,-400.0,0.00025894,2]
[383625709,1757045464999,-323.17392185,0.00025894,2]
[383625710,1757045465009,-400.0,0.00025894,2]
[383625711,1757045465018,-191.6602342,0.00025894,2]
[383625712,1757045465028,-400.0,0.00025894,2]
[383625713,1757045465037,-400.0,0.00025894,2]
[383625714,1757045465047,-305.26319044,0.00025894,2]
[383625715,1757045465057,-400.0,0.00025894,2]
[383625716,1757045465066,-159.9856117,0.00025894,2]
[383625717,1757045465076,-267.43693493,0.00025894,2]
[383625718,1757045465086,-400.0,0.00025894,2]
[383625719,1757045465095,-400.0,0.00025894,2]
[383625720,1757045465105,-400.0,0.00025894,2]
[383625721,1757045465115,-400.0,0.00025894,2]
[383625722,1757045465125,-400.0,0.00025894,2]
[383625723,1757045465136,-400.0,0.00025894,2]
[383625724,1757045465146,-400.0,0.00025894,2]
[383625725,1757045465156,-464.38088359,0.00025894,2]
[383625726,1757045465165,-415.83,0.00025894,2]
[383625727,1757045465175,-253.54355885,0.00025894,2]
[383625728,1757045465185,-400.0,0.00025894,2]
[383625729,1757045465196,-400.0,0.00025894,2]
[383625730,1757045465205,-400.0,0.00025894,2]
[383625731,1757045465215,-400.0,0.00025894,2]
[383625732,1757045465225,-262.87444474,0.00025894,2]
[383625733,1757045465235,-347.60690808,0.00025894,2]
[383625734,1757045465245,-400.0,0.00025894,2]
[383625735,1757045465255,-400.0,0.00025894,2]
[383625736,1757045465265,-400.0,0.00025894,2]
[383625737,1757045465274,-400.0,0.00025894,2]
[383625738,1757045465283,-169.8466257,0.00025894,2]
[383625739,1757045465293,-400.0,0.00025894,2]
[383625740,1757045465302,-400.0,0.00025894,2]
[383625741,1757045465313,-400.0,0.00025894,2]
[383625742,1757045465323,-400.0,0.00025894,2]
[383625743,1757045465333,-400.0,0.00025894,2]
[383625744,1757045465343,-400.0,0.00025894,2]
[383625745,1757045465353,-400.0,0.00025894,2]
[383625746,1757045465363,-156.71894183,0.00025894,2]
[383625747,1757045465373,-167.78983479,0.00025894,2]
[383625748,1757045465385,-210.11554564,0.00025894,2]
[383625749,1757045465394,-400.0,0.00025894,2]
[383625750,1757045465404,-400.0,0.00025894,2]
[383625751,1757045465414,-432.48568119,0.00025894,2]
[383625752,1757045465424,-400.0,0.00025894,2]
[383625753,1757045465435,-400.0,0.00025894,2]
[383625754,1757045465445,-400.0,0.00025894,2]
[383625755,1757045465455,-400.0,0.00025894,2]
[383625756,1757045465467,-400.0,0.00025894,2]
[383625757,1757045465482,-400.0,0.00025894,2]
[383625758,1757045465492,-400.0,0.00025894,2]
[383625759,1757045465501,-400.0,0.00025894,2]
[383625760,1757045465512,-370.652006,0.00025894,2]
[383625761,1757045465521,-327.14158222,0.00025894,2]
[383625762,1757045465531,-400.0,0.00025894,2]
[383625763,1757045465541,-400.0,0.00025894,2]
[383625764,1757045465556,-400.0,0.00025894,2]
[383625765,1757045465567,-513.28063304,0.00025894,2]
[383625766,1757045465576,-400.0,0.00025894,2]
[383625767,1757045465587,-400.0,0.00025894,2]
[383625768,1757045465597,-445.0208642,0.00025894,2]
[383625769,1757045465607,-400.0,0.00025894,2]
[383625770,1757045465617,-400.0,0.00025894,2]
[383625771,1757045465629,-341.89644642,0.00025894,2]
[383625772,1757045465640,-400.0,0.00025894,2]
[383625773,1757045465651,-400.0,0.00025894,2]
[383625774,1757045465661,-400.0,0.00025894,2]
[383625775,1757045465671,-325.86148786,0.00025894,2]
[383625776,1757045465680,-400.0,0.00025894,2]
[383625777,1757045465691,-400.0,0.00025894,2]
[383625778,1757045465701,-400.0,0.00025894,2]
[383625779,1757045465711,-400.0,0.00025894,2]
[383625780,1757045465720,-400.0,0.00025894,2]
[383625781,1757045465731,-400.0,0.00025894,2]
[383625782,1757045465742,-400.0,0.00025894,2]
[383625783,1757045465752,-434.59,0.00025894,2]
[383625784,1757045465762,-400.0,0.00025894,2]
[383625785,1757045465773,-400.0,0.00025894,2]
[383625786,1757045465783,-400.0,0.00025894,2]
[383625787,1757045465794,-400.0,0.00025894,2]
[383625788,1757045465961,-400.0,0.00025894,2]
[383625789,1757045465971,-400.0,0.00025894,2]
[383625790,1757045465981,-367.51910517,0.00025894,2]
[383625791,1757045465991,-400.0,0.00025894,2]
[383625792,1757045466001,-400.0,0.00025894,2]
[383625793,1757045466011,-3000.0,0.000259,9]
[383625794,1757045466021,-235.69,0.000259,2]
[383625795,1757045466031,-3991.64451425,0.00025929,4]
[383625796,1757045466041,-150.0,0.00025992,2]
[383625797,1757045466051,-400.0,0.00025993,2]
[383625798,1757045466061,-400.0,0.00025993,2]
[383625799,1757045466070,-400.0,0.00025993,2]
[383625800,1757045466080,-329.17447963,0.00025993,2]
[383625801,1757045466090,-273.44135047,0.00025993,2]
[383625802,1757045466099,-400.0,0.00025993,2]
[383625803,1757045466108,-400.0,0.00025993,2]
[383625804,1757045466118,-400.0,0.00025993,2]
[383625805,1757045466128,-463.5331565,0.00025993,2]
[383625806,1757045466138,-400.0,0.00025993,2]
[383625807,1757045466149,-400.0,0.00025993,2]
[383625808,1757045466159,-400.0,0.00025993,2]
[383625809,1757045466169,-352.66130665,0.00025993,2]
[383625810,1757045466179,-400.0,0.00025993,2]
[383625811,1757045466189,-400.0,0.00025993,2]
[383625812,1757045466199,-222.93698979,0.00025993,2]
[383625813,1757045466210,-400.0,0.00025993,2]
[383625814,1757045466220,-431.57670852,0.00025993,2]
[383625815,1757045466230,-490.72,0.00025993,2]
[383625816,1757045466240,-400.0,0.00025993,2]
[383625817,1757045466250,-400.0,0.00025993,2]
[383625818,1757045466260,-400.0,0.00025993,2]
[383625819,1757045466270,-400.0,0.00025993,2]
[383625820,1757045466280,-400.0,0.00025993,2]
[383625821,1757045466290,-400.0,0.00025993,2]
[383625822,1757045466300,-400.0,0.00025993,2]
[383625823,1757045466310,-400.0,0.00025993,2]
[383625824,1757045466321,-400.0,0.00025993,2]
[383625825,1757045466331,-400.0,0.00025993,2]
[383625826,1757045466341,-535.95750985,0.00025993,2]
[383625827,1757045466351,-400.0,0.00025993,2]
[383625828,1757045466361,-400.0,0.00025993,2]
[383625829,1757045466371,-400.0,0.00025993,2]
[383625830,1757045466381,-400.0,0.00025993,2]
[383625831,1757045466391,-1135.87,0.00025993,2]
[383625832,1757045466401,-400.0,0.00025993,2]
[383625833,1757045466412,-400.0,0.00025993,2]
[383625834,1757045466422,-553.22,0.00025993,2]
[383625835,1757045466432,-400.0,0.00025993,2]
[383625836,1757045466442,-539.6130759,0.00025993,2]
[383625837,1757045466452,-496.75923756,0.00025993,2]
[383625838,1757045466462,-400.0,0.00025993,2]
[383625839,1757045466472,-400.0,0.00025993,2]
[383625840,1757045466482,-400.0,0.00025993,2]
[383625841,1757045466492,-400.0,0.00025993,2]
[383625842,1757045466501,-446.90220124,0.00025993,2]
[383625843,1757045466511,-400.0,0.00025993,2]
[383625844,1757045466520,-290.77217032,0.00025993,2]
[383625845,1757045466538,-659.02,0.00025993,2]
[383625846,1757045466548,-693.59,0.00025993,2]
[383625847,1757045466560,-400.0,0.00025993,2]
[383625848,1757045466570,-1013.01,0.00025993,2]
[383625849,1757045466583,-509.82190096,0.00025993,2]
[383625850,1757045466592,-400.0,0.00025993,2]
[383625851,1757045466603,-400.0,0.00025993,2]
[383625852,1757045466612,-400.0,0.00025993,2]
[383625853,1757045466622,-400.0,0.00025993,2]
[383625854,1757045466632,-400.0,0.00025993,2]
[383625855,1757045466641,-400.0,0.00025994,2]
[383625856,1757045466651,-500.0,0.00025999,2]
[383625857,1757045466661,-2453.45,0.00026,7]
[383625858,1757045466670,-880.28,0.00026,7]
[383625859,1757045466680,-294.0,0.00026,2]
[383625860,1757045466690,-408.91,0.00026,7]
[383625861,1757045466699,-1767.28,0.00026,7]
[383625862,1757045466709,-3010.21128815,0.00026,7]